[Event "Irish New Year-IM 2022"]
[Site "Dublin"]
[Date "2022.01.06"]
[Round "8.7"]
[White "Urh, Zala"]
[Black "Melaugh, Shane"]
[Result "1-0"]
[ECO "A80"]
[WhiteElo "2291"]
[BlackElo "2192"]
[Annotator "ChessBase"]
[PlyCount "83"]
[EventDate "2022.01.02"]
[EventType "tourn"]
[EventCountry "IRL"]
[SourceTitle "playchess.com"]
[Source "ChessBase"]
[SourceQuality "1"]
[TimeControl "5400+30"]

1. d4 {[%emt 0:00:02]} e6 {[%emt 0:28:51]} 2. Nf3 {[%emt 0:00:46]} f5 {[%emt 0:00:13]} 3. Bf4 {[%emt 0:00:26]} Nf6 {[%emt 0:00:36]} 4. e3 {[%emt 0:00:36]} Be7 {[%emt 0:01:09]} 5. c4 {[%emt 0:00:39]} O-O {[%emt 0:01:15]} 6. h3 {[%emt 0:02:52]} b6 {[%emt 0:00:14]} 7. g4 {[%emt 0:04:57]} d5 {[%emt 0:03:38]} 8. Bd3 {[%emt 0:04:11]} c6 {[%emt 0:06:44]} 9. Qc2 {[%emt 0:03:36]} Ne4 {[%emt 0:00:13]} 10. Nc3 {[%emt 0:05:20]} Bb7 {[%emt 0:11:49]} 11. O-O-O {[%emt 0:08:05]} Nd7 {[%emt 0:00:30]} 12. Ne5 {[%emt 0:07:11]} Nxe5 {[%emt 0:04:08]} 13. Bxe5 {[%emt 0:00:37]} Bf6 {[%emt 0:00:45]} 14. Bh2 {[%emt 0:05:17]} Qe7 {[%emt 0:07:35]} 15. f3 {[%emt 0:07:02]} Nxc3 {[%emt 0:00:07]} 16. Qxc3 {[%emt 0:00:05]} c5 {[%emt 0:00:38]} 17. Kb1 {[%emt 0:06:21]} dxc4 {[%emt 0:01:05]} 18. Be2 {[%emt 0:01:03]} cxd4 {[%emt 0:03:11]} 19. exd4 {[%emt 0:00:17]} Rac8 {[%emt 0:00:31]} 20. gxf5 {[%emt 0:03:19]} exf5 {[%emt 0:00:21]} 21. Bxc4+ {[%emt 0:00:42]} Kh8 {[%emt 0:00:05]} 22. Rhe1 {[%emt 0:00:45]} Qd7 {[%emt 0:01:49]} 23. Qb4 {[%emt 0:02:29]} Bd5 {[%emt 0:06:34]} 24. Ba6 {[%emt 0:03:01]} Rcd8 {[%emt 0:01:47]} 25. Rd3 {[%emt 0:04:30]} f4 {[%emt 0:02:33]} 26. Bc4 {[%emt 0:13:50]} Bxc4 {[%emt 0:01:52]} 27. Qxc4 {[%emt 0:00:08]} Qxh3 {[%emt 0:00:09]} 28. Bg1 {[%emt 0:13:46]} Rfe8 {[%emt 0:01:05]} 29. Red1 {[%emt 0:00:09]} Re2 {[%emt 0:00:51]} 30. Rb3 {[%emt 0:01:19]} Qg2 {[%emt 0:02:22]} 31. a4 {[%emt 0:00:24]} h5 {[%emt 0:01:06]} 32. a5 {[%emt 0:00:11]} bxa5 {[%emt 0:02:14]} 33. Qb5 {[%emt 0:00:45]} Qg6+ {[%emt 0:00:08]} 34. Ka1 {[%emt 0:01:41]} Rg2 {[%emt 0:00:07]} 35. Qf1 {[%emt 0:00:12]} a4 {[%emt 0:01:12]} 36. Rb5 {[%emt 0:01:03]} a3 {[%emt 0:00:22]} 37. Rxh5+ {[%emt 0:00:12]} Kg8 {[%emt 0:00:09]} 38. Qc4+ {[%emt 0:00:24]} Kf8 {[%emt 0:01:36]} 39. Rh8+ {[%emt 0:00:06]} Ke7 {[%emt 0:00:02]} 40. Qc7+ {[%emt 0:00:56]} Ke6 {[%emt 0:00:18]} 41. Re1+ {[%emt 0:00:07]} Kf5 {[%emt 0:00:35]} 42. Qc5+ {[%emt 0:00:13]} 1-0

[Event "Irish New Year-IM 2022"]
[Site "Dublin"]
[Date "2022.01.06"]
[Round "8.10"]
[White "Wall, Tim P"]
[Black "Mannion, Stephen R"]
[Result "1/2-1/2"]
[ECO "D00"]
[WhiteElo "2256"]
[BlackElo "2267"]
[Annotator "ChessBase"]
[PlyCount "57"]
[EventDate "2022.01.02"]
[EventType "tourn"]
[EventCountry "IRL"]
[SourceTitle "playchess.com"]
[Source "ChessBase"]
[SourceQuality "1"]
[TimeControl "5400+30"]

1. d4 {[%emt 0:02:43]} d5 {[%emt 0:00:05]} 2. Bg5 {[%emt 0:00:35]} Nf6 {[%emt 0:00:10]} 3. Bxf6 {[%emt 0:12:13]} exf6 {[%emt 0:00:06]} 4. e3 {[%emt 0:00:48]} Bd6 {[%emt 0:00:06]} 5. Bd3 {[%emt 0:00:29]} f5 {[%emt 0:03:45]} 6. Nd2 {[%emt 0:07:43]} Be6 {[%emt 0:01:22]} 7. Ne2 {[%emt 0:10:46]} Nd7 {[%emt 0:01:20]} 8. c4 {[%emt 0:02:20]} dxc4 {[%emt 0:01:38]} 9. Bxc4 {[%emt 0:02:16]} Bxc4 {[%emt 0:06:44]} 10. Nxc4 {[%emt 0:00:08]} Bb4+ {[%emt 0:01:55]} 11. Nc3 {[%emt 0:01:09]} g6 {[%emt 0:10:37]} 12. Qb3 {[%emt 0:05:48]} Qe7 {[%emt 0:04:15]} 13. O-O {[%emt 0:00:33]} Bxc3 {[%emt 0:06:37]} 14. bxc3 {[%emt 0:04:07]} b6 {[%emt 0:01:01]} 15. a4 {[%emt 0:09:56]} a5 {[%emt 0:01:33]} 16. f3 {[%emt 0:06:27]} O-O {[%emt 0:02:08]} 17. Rae1 {[%emt 0:00:26]} Nf6 {[%emt 0:08:41]} 18. e4 {[%emt 0:03:14]} f4 {[%emt 0:00:26]} 19. Ne5 {[%emt 0:05:07]} Qe6 {[%emt 0:04:04]} 20. Qb5 {[%emt 0:00:53]} h6 {[%emt 0:04:02]} 21. Nc6 {[%emt 0:01:24]} Rfe8 {[%emt 0:12:49]} 22. d5 {[%emt 0:05:21]} Qd7 {[%emt 0:00:05]} 23. c4 {[%emt 0:00:19]} Nh5 {[%emt 0:00:40]} 24. e5 {[%emt 0:06:44]} Ng7 {[%emt 0:00:08]} 25. Re4 {[%emt 0:02:17]} g5 {[%emt 0:00:52]} 26. Rfe1 {[%emt 0:02:00]} Kh8 {[%emt 0:03:48]} 27. Qb2 {[%emt 0:02:50]} Kg8 {[%emt 0:00:02]} 28. Qb5 {[%emt 0:01:09]} Kh8 {[%emt 0:00:02]} 29. Qb2 {[%emt 0:01:55]} 1/2-1/2

[Event "Irish New Year-IM 2022"]
[Site "Dublin"]
[Date "2022.01.06"]
[Round "9.9"]
[White "Melaugh, Shane"]
[Black "Wafa, Shrook"]
[Result "0-1"]
[ECO "A28"]
[WhiteElo "2192"]
[BlackElo "2173"]
[Annotator "NA"]
[PlyCount "66"]
[EventDate "2022.01.02"]
[EventType "tourn"]
[EventCountry "IRL"]
[SourceTitle "playchess.com"]
[Source "ChessBase"]
[SourceQuality "1"]
[TimeControl "5400+30"]

1. c4 {[%emt 0:00:02]} e5 {[%emt 0:00:11]} 2. Nc3 {[%emt 0:00:25]} Nf6 {[%emt 0:00:19]} 3. Nf3 {[%emt 0:00:06]} Nc6 {[%emt 0:00:29]} 4. e4 {[%emt 0:00:04]} d6 {[%emt 0:00:31]} 5. d4 {[%emt 0:00:04]} exd4 {[%emt 0:00:34]} 6. Nxd4 {[%emt 0:00:02]} Nxd4 {[%emt 0:00:37] 6...g6 is setting a new trend.} 7. Qxd4 {[%emt 0:00:03]} Be7 {[%emt 0:00:21]} 8. f3 {[%emt 0:00:36]} O-O {[%emt 0:00:26]} 9. Be3 {[%emt 0:01:00]} Be6 {[%emt 0:00:45]} 10. Be2 {[%emt 0:01:32]} Nd7 {[%emt 0:01:29]} 11. O-O {[%emt 0:00:06]} f5 {[%emt 0:01:26] [#]} 12. Qd2 $146 {[%emt 0:04:59]} ({Predecessor:} 12. exf5 $14 Bxf5 (12... Rxf5 13. Bd3 Rf7 14. Nd5 Bxd5 15. Qxd5 Ne5 16. Bc2 c6 17. Qe4 Ng6 18. Rad1 {1-0 (32) Rieger,R (2236)-Hicker,H (2061) Lienz 2015}) 13. Rad1) 12... fxe4 {[%emt 0:08:51]} 13. fxe4 {[%emt 0:01:06]} Bf6 {[%emt 0:01:37]} 14. Rac1 {[%emt 0:01:42]} Qe7 {[%emt 0:05:26]} 15. b3 {[%emt 0:02:01]} b6 {[%emt 0:08:57]} 16. Bd3 {[%emt 0:04:21]} Ne5 {[%emt 0:01:23]} 17. h3 {[%emt 0:02:09]} Nxd3 {[%emt 0:06:42]} 18. Qxd3 {[%emt 0:00:03]} Bxc3 {[%emt 0:00:19]} 19. Qxc3 {[%emt 0:00:02]} Bd7 {[%emt 0:03:10]} 20. Rfe1 {[%emt 0:01:34]} Rae8 {[%emt 0:04:23]} ({Don't do} 20... Qxe4 21. Bxb6 Qf5 22. Bd4 $14 (22. Re7 Qg5 $14)) 21. Rcd1 $17 {[%emt 0:01:02]} (21. Bd4 $11) 21... Bc6 {[%emt 0:07:50]} 22. Bd4 {[%emt 0:02:38]} Rf4 {[%emt 0:07:40]} 23. Qg3 {[%emt 0:07:33]} Rxe4 {[%emt 0:04:23]} 24. Rxe4 {[%emt 0:00:07]} Bxe4 {[%emt 0:00:14]} 25. Re1 {[%emt 0:00:31]} Qf7 {[%emt 0:01:45]} 26. h4 {[%emt 0:00:30]} h5 {[%emt 0:05:37]} 27. Re3 {[%emt 0:03:26]} Re6 {[%emt 0:03:30]} 28. Qg5 {[%emt 0:01:17]} Rg6 {[%emt 0:02:06]} 29. Qd8+ {[%emt 0:00:07]} Kh7 {[%emt 0:00:12]} 30. g3 {[%emt 0:01:45]} Qf4 {[%emt 0:01:57]} 31. Qe7 {[%emt 0:01:21]} Rxg3+ {[%emt 0:00:19]} 32. Rxg3 {[%emt 0:00:03]} Qxg3+ {[%emt 0:00:08]} 33. Kf1 {[%emt 0:00:02]} Bd3+ {[%emt 0:00:06]} 0-1

[Event "Irish New Year-IM 2022"]
[Site "Dublin"]
[Date "2022.01.06"]
[Round "9.10"]
[White "Daly, Colm"]
[Black "Urh, Zala"]
[Result "1-0"]
[ECO "A13"]
[WhiteElo "2285"]
[BlackElo "2291"]
[Annotator "RC"]
[PlyCount "149"]
[EventDate "2022.01.02"]
[EventType "tourn"]
[EventCountry "IRL"]
[SourceTitle "playchess.com"]
[Source "ChessBase"]
[SourceQuality "1"]
[TimeControl "5400+30"]

1. Nf3 {[%emt 0:01:37]} Nf6 {[%emt 0:00:49]} 2. c4 {[%emt 0:00:45]} e6 {[%emt 0:00:06]} 3. b3 {[%emt 0:00:29]} d5 {[%emt 0:00:08]} 4. Bb2 {[%emt 0:00:03]} c5 {[%emt 0:00:13]} 5. e3 {[%emt 0:00:24]} Nc6 {[%emt 0:00:13]} 6. cxd5 {[%emt 0:00:24]} exd5 {[%emt 0:00:08]} 7. Bb5 {[%emt 0:00:34]} Bd6 {[%emt 0:00:16]} 8. d4 {[%emt 0:04:15]} cxd4 {[%emt 0:01:03]} 9. Nxd4 {[%emt 0:01:17]} O-O {[%emt 0:00:18]} 10. Nd2 {[%emt 0:02:55]} Ne5 {[%emt 0:05:36]} 11. O-O {[%emt 0:02:18]} Bg4 {[%emt 0:05:12]} 12. Be2 {[%emt 0:02:48]} Bd7 {[%emt 0:09:58]} 13. N4f3 {[%emt 0:06:18]} Ng6 {[%emt 0:03:13]} 14. Nc4 {[%emt 0:02:29]} Bc7 {[%emt 0:04:26]} 15. Nce5 {[%emt 0:07:02]} Nxe5 {[%emt 0:08:34]} 16. Bxe5 {[%emt 0:00:22]} Bxe5 {[%emt 0:02:17]} 17. Nxe5 {[%emt 0:00:07]} Bf5 {[%emt 0:00:14]} 18. Qd4 {[%emt 0:02:31]} Re8 {[%emt 0:01:47]} 19. Rfd1 {[%emt 0:03:06]} Qd6 {[%emt 0:11:28]} 20. Nf3 {[%emt 0:00:34]} a6 {[%emt 0:03:42]} 21. Rac1 {[%emt 0:00:40]} Qa3 {[%emt 0:01:54]} 22. Qa1 {[%emt 0:04:49]} Rac8 {[%emt 0:01:24]} 23. Nd4 {[%emt 0:00:38]} Be4 {[%emt 0:03:51]} 24. h3 {[%emt 0:00:43]} h6 {[%emt 0:00:20]} 25. Bg4 {[%emt 0:02:40]} Nxg4 {[%emt 0:06:03]} 26. hxg4 {[%emt 0:01:17]} Qe7 {[%emt 0:00:16]} 27. Rxc8 {[%emt 0:01:58]} Rxc8 {[%emt 0:02:42]} 28. Rc1 {[%emt 0:00:22]} Re8 {[%emt 0:01:05]} 29. Rc3 {[%emt 0:04:36]} Qh4 {[%emt 0:04:58]} 30. Qd1 {[%emt 0:02:31]} h5 {[%emt 0:02:54]} 31. f3 {[%emt 0:08:02]} Bg6 {[%emt 0:01:43]} 32. gxh5 {[%emt 0:01:11]} Qxh5 {[%emt 0:00:31]} 33. Qc1 {[%emt 0:01:17]} Re5 {[%emt 0:03:29]} 34. Qd2 {[%emt 0:22:28]} Qh6 {[%emt 0:09:04]} 35. g4 {[%emt 0:01:48]} Re8 {[%emt 0:01:50]} 36. Qh2 {[%emt 0:01:13]} Qg5 {[%emt 0:00:35]} 37. Kf2 {[%emt 0:03:34]} b5 {[%emt 0:00:51]} 38. a3 {[%emt 0:00:17]} Qe7 {[%emt 0:01:38]} 39. b4 {[%emt 0:00:19]} a5 {[%emt 0:01:44]} 40. bxa5 {[%emt 0:01:49]} b4 {[%emt 0:00:10]} 41. axb4 {[%emt 0:00:23]} Qxb4 {[%emt 0:00:06]} 42. Qc7 {[%emt 0:01:04]} Qb2+ {[%emt 0:01:00]} 43. Kg3 {[%emt 0:00:44]} Qb1 {[%emt 0:00:54]} 44. Rc1 {[%emt 0:00:14]} Qd3 {[%emt 0:00:08]} 45. Qc3 {[%emt 0:00:30]} Qa6 {[%emt 0:03:34]} 46. Qc6 {[%emt 0:00:16]} Ra8 {[%emt 0:00:28]} 47. Qxa6 {[%emt 0:00:19]} Rxa6 {[%emt 0:00:05]} 48. Rc8+ {[%emt 0:00:10]} Kh7 {[%emt 0:00:04]} 49. Rc5 {[%emt 0:00:07]} Bd3 {[%emt 0:01:00]} 50. Rxd5 {[%emt 0:00:17]} g6 {[%emt 0:00:09]} 51. g5 {[%emt 0:01:22]} Kg7 {[%emt 0:00:16]} 52. Kf4 {[%emt 0:01:21]} Kf8 {[%emt 0:00:28]} 53. Re5 {[%emt 0:01:00]} Bc4 {[%emt 0:00:39]} 54. Nc2 {[%emt 0:00:40]} f6 {[%emt 0:00:39]} 55. Rc5 {[%emt 0:00:33]} Be2 {[%emt 0:00:44]} 56. Nd4 {[%emt 0:01:27]} Bd3 {[%emt 0:00:28]} 57. e4 {[%emt 0:00:38]} fxg5+ {[%emt 0:00:34]} 58. Kxg5 {[%emt 0:00:49]} Ke7 {[%emt 0:00:11]} 59. Kf4 {[%emt 0:00:16]} Bf1 {[%emt 0:00:57]} 60. Ke5 {[%emt 0:00:13]} Kd7 {[%emt 0:00:12]} 61. Nc2 {[%emt 0:01:08]} Re6+ {[%emt 0:00:24]} 62. Kd4 {[%emt 0:00:21]} Rf6 {[%emt 0:00:26]} 63. Ke3 {[%emt 0:00:19]} Bg2 {[%emt 0:00:11]} 64. Nd4 {[%emt 0:00:16]} Bf1 {[%emt 0:00:12]} 65. e5 {[%emt 0:00:35]} Ra6 {[%emt 0:00:14]} 66. Ke4 {[%emt 0:01:05]} Bg2 {[%emt 0:00:40]} 67. Kd5 {[%emt 0:00:18]} Bh3 {[%emt 0:00:22]} 68. Rb5 {[%emt 0:00:56]} Bg2 {[%emt 0:00:35]} 69. e6+ {[%emt 0:00:21]} Ke8 {[%emt 0:00:20]} 70. Ke5 {[%emt 0:00:14]} Bf1 {[%emt 0:00:31]} 71. Rc5 {[%emt 0:00:26]} Ra8 {[%emt 0:00:32]} 72. Kf6 {[%emt 0:00:21]} Bd3 {[%emt 0:00:03]} 73. f4 {[%emt 0:01:22]} Rb8 {[%emt 0:01:00]} 74. Rc7 {[%emt 0:00:53]} Ra8 {[%emt 0:00:34]} 75. Rh7 {[%emt 0:02:01]} 1-0